fUST/lending_fUST_20251026
["ID","MTS","AMOUNT","RATE_DAILY","PERIOD"]
[392382524,1761414273369,108.94251339,0.00016656,2]
[392382525,1761414273393,391.05748661,0.00016656,2]
[392382526,1761414273434,500.0,0.00016656,2]
[392382527,1761414273462,500.0,0.00016656,2]
[392382528,1761414273491,500.0,0.00016656,2]
[392382529,1761414273526,500.0,0.00016656,2]
[392382530,1761414273559,425.46603337,0.00016656,2]
[392382531,1761414273588,500.0,0.00016656,2]
[392382532,1761414273620,500.0,0.00016656,2]
[392382533,1761414273656,500.0,0.00016656,2]
[392382534,1761414273703,500.0,0.00016656,2]
[392382535,1761414277484,2118.49,0.00016655,2]
[392382536,1761414277841,781.26,0.00016656,2]
[392382537,1761414278811,500.0,0.00016654,2]
[392382538,1761414281859,820.56,0.00016654,2]
[392382539,1761414281893,963.17648002,0.00016655,2]
[392382540,1761414281914,170.32351998,0.00016655,2]
[392382541,1761414284607,300.00875474,0.00016657,2]
[392382542,1761414285700,1501.28,0.00016656,2]
[392382543,1761414286899,500.0,0.00016655,2]
[392382544,1761414288968,500.0,0.00016656,2]
[392382545,1761414289855,500.0,0.00016655,2]
[392382546,1761414289964,500.0,0.00016654,2]
[392382547,1761414290937,500.0,0.00016654,2]
[392382548,1761414293327,1334.41,0.00016654,2]
[392382549,1761414293606,500.0,0.00016655,2]
[392382550,1761414295281,500.0,0.00016654,2]
[392382551,1761414295702,500.0,0.00016656,2]
[392382552,1761414297019,500.0,0.00016656,2]
[392382553,1761414297262,500.0,0.00016655,2]
[392382554,1761414301080,1693.98772528,0.00016655,2]
[392382555,1761414301104,260.37227472,0.00016655,2]
[392382556,1761414302084,500.0,0.00016654,2]
[392382557,1761414302340,500.0,0.00016654,2]
[392382558,1761414303762,300.0,0.00016656,2]
[392382559,1761414303794,300.0,0.00016656,2]
[392382560,1761414306540,300.0,0.00016656,2]
[392382561,1761414306587,1200.0,0.00016656,2]
[392382562,1761414306923,880.17,0.00016655,2]
[392382563,1761414307724,500.0,0.00016654,2]
[392382564,1761414308779,500.0,0.00016655,2]
[392382565,1761414309166,500.0,0.00016656,2]
[392382566,1761414309777,1160.92,0.00016654,2]
[392382567,1761414310348,500.0,0.00016656,2]
[392382568,1761414310923,747.71,0.00016654,2]
[392382569,1761414311440,733.31,0.00016655,2]
[392382570,1761414311602,1117.52772528,0.00016656,2]
[392382571,1761414315896,-369.04227472,0.00016656,2]
[392382572,1761414316911,1292.23,0.00016656,2]
[392382573,1761414316949,-2428.41005463,0.00016657,2]
[392382574,1761414317009,-47385.17989074,0.00016657,2]
[392382575,1761414317018,-500.0,0.00016657,2]
[392382576,1761414317028,-500.0,0.00016657,2]
[392382577,1761414317039,-505.75,0.00016657,2]
[392382578,1761414317048,-500.0,0.00016657,2]
[392382579,1761414317057,-422.66005463,0.00016657,2]
[392382580,1761414317406,150.0,0.0001266,30]
[392382581,1761414317789,150.0,0.00013811,30]
[392382582,1761414318877,172.95,0.00014962,30]
[392382583,1761414319148,230.59,0.00016113,30]
[392382584,1761414319562,288.24,0.00017264,30]
[392382585,1761414319975,345.89,0.00018415,30]
[392382586,1761414320373,403.54,0.00019566,30]
[392382587,1761414321058,500.0,0.00016656,2]
[392382588,1761414321277,468.93,0.00016654,2]
[392382589,1761414321659,500.0,0.00016655,2]
[392382590,1761414323139,1166.43,0.00016654,2]
[392382591,1761414323580,491.8260256,0.00016655,2]
[392382592,1761414325036,500.0,0.00016656,2]
[392382593,1761414325179,500.0,0.00016656,2]
[392382594,1761414327076,1392.8,0.00016656,2]
[392382595,1761414329212,500.0,0.00016655,2]
[392382596,1761414331088,-77.33994537,0.00016657,2]
[392382597,1761414331117,-500.0,0.00016657,2]
[392382598,1761414331144,-281.6,0.00016657,2]
[392382599,1761414331173,-765.26,0.00016657,2]
[392382600,1761414331202,-1472.73,0.00016657,2]
[392382601,1761414331230,-500.0,0.00016657,2]
[392382602,1761414331260,-1137.0,0.00016657,2]
[392382603,1761414331540,-1916.05,0.00016657,2]
[392382604,1761414331568,-500.0,0.00016657,2]
[392382605,1761414331594,-1366.85,0.00016657,2]
[392382606,1761414331621,-584.99383864,0.00016657,2]
[392382607,1761414331647,-500.0,0.00016657,2]
[392382608,1761414331851,-1643.78,0.00016657,2]
[392382609,1761414331884,-1665.65,0.00016657,2]
[392382610,1761414331920,-1109.68,0.00016657,2]
[392382611,1761414331956,-500.0,0.00016657,2]
[392382612,1761414332019,-1351.85,0.00016657,2]
[392382613,1761414332052,-852.19,0.00016657,2]
[392382614,1761414332088,-1708.72,0.00016657,2]
[392382615,1761414332123,-383.09,0.00016657,2]
[392382616,1761414332562,-1408.31,0.00016657,2]
[392382617,1761414332594,-500.0,0.00016657,2]
[392382618,1761414332626,-1574.3,0.00016657,2]
[392382619,1761414332660,-522.14226528,0.00016657,2]
[392382620,1761414332691,-500.0,0.00016657,2]
[392382621,1761414332721,-490.50546944,0.00016657,2]
[392382622,1761414332771,-9.49453056,0.00016657,2]
[392382623,1761414332802,-500.0,0.00016657,2]
[392382624,1761414332834,-1159.57,0.00016657,2]
[392382625,1761414332866,-500.0,0.00016657,2]
[392382626,1761414332899,-500.0,0.00016657,2]
[392382627,1761414332929,-2026.41,0.00016657,2]
[392382628,1761414333712,-1307.45,0.00016657,2]
[392382629,1761414333742,-500.0,0.00016657,2]
[392382630,1761414333770,-792.81,0.00016657,2]
[392382631,1761414333799,-500.0,0.00016657,2]
[392382632,1761414333828,-1486.31,0.00016657,2]
[392382633,1761414334226,500.0,0.00016656,2]
[392382634,1761414334255,500.0,0.00016656,2]
[392382635,1761414335300,500.0,0.00016655,2]
[392382636,1761414337144,-607.47,0.00016654,2]
[392382637,1761414337172,-500.0,0.00016655,2]
[392382638,1761414337200,-500.0,0.00016655,2]
[392382639,1761414337227,-826.87,0.00016657,2]
[392382640,1761414337255,-803.84,0.00016657,2]
[392382641,1761414337283,-830.48,0.00016657,2]
[392382642,1761414337315,-500.0,0.00016657,2]
[392382643,1761414337343,-343.47,0.00016657,2]
[392382644,1761414337529,-175.75,0.00016657,2]
[392382645,1761414337758,733.37,0.00016656,2]
[392382646,1761414338278,500.0,0.00016657,2]
[392382647,1761414338381,1191.83,0.00016655,2]
[392382648,1761414338991,500.0,0.00016656,2]
[392382649,1761414339420,1089.62,0.00016655,2]
[392382650,1761414339494,500.0,0.00016656,2]
[392382651,1761414339657,500.0,0.00016657,2]
[392382652,1761414341410,846.49,0.00016654,2]
[392382653,1761414342836,500.0,0.00016656,2]
[392382654,1761414342866,624.48,0.00016656,2]
[392382655,1761414345553,500.0,0.00016656,2]
[392382656,1761414346153,500.0,0.00016655,2]
[392382657,1761414349352,541.57,0.00016654,2]
[392382658,1761414349922,500.0,0.00016655,2]
[392382659,1761414352684,500.0,0.00016655,2]
[392382660,1761414353357,1836.22,0.00016656,2]
[392382661,1761414353601,500.0,0.00016656,2]
[392382662,1761414353633,500.0,0.00016655,2]
[392382663,1761414354396,196.0,0.00016,2]
[392382664,1761414355200,196.0,0.0001621,2]
[392382665,1761414355532,196.0,0.0001642,2]
[392382666,1761414355638,500.0,0.00016655,2]
[392382667,1761414355831,196.0,0.0001663,2]
[392382668,1761414355932,500.0,0.00016656,2]
[392382669,1761414356789,894.78,0.00016654,2]
[392382670,1761414357061,557.92155247,0.00016656,2]
[392382671,1761414357521,1309.9,0.00016655,2]
[392382672,1761414357952,500.0,0.00016656,2]
[392382673,1761414358995,-1353.52308363,0.00016658,2]
[392382674,1761414359015,-1353.52308363,0.00016658,2]
[392382675,1761414359026,-20854.43136927,0.00016658,2]
[392382676,1761414359036,-500.0,0.00016663,2]
[392382677,1761414359046,-367.52246347,0.00016673,2]
[392382678,1761414359416,575.61844753,0.00016655,2]
[392382679,1761414359440,213.97155247,0.00016655,2]
[392382680,1761414360948,1699.57,0.00016654,2]
[392382681,1761414361328,500.0,0.00016656,2]
[392382682,1761414361724,500.0,0.00016656,2]
[392382683,1761414362144,500.0,0.00016656,2]
[392382684,1761414362536,1121.38,0.00016656,2]
[392382685,1761414364303,877.4426873,0.00016573,2]
[392382686,1761414364355,-300.0,0.00016672,2]
[392382687,1761414365112,500.0,0.00016656,2]
[392382688,1761414365625,500.0,0.00016654,2]
[392382689,1761414367633,500.0,0.00016655,2]
[392382690,1761414369340,1722.72,0.00016654,2]
[392382691,1761414370462,500.0,0.00016656,2]
[392382692,1761414370561,500.0,0.00016655,2]
[392382693,1761414370593,539.02,0.00016654,2]
[392382694,1761414371969,500.0,0.00016656,2]
[392382695,1761414373811,500.0,0.00016656,2]
[392382696,1761414374721,843.34,0.00016655,2]
[392382697,1761414374754,1063.45,0.00016655,2]
[392382698,1761414376586,153.45650045,0.00016573,2]
[392382699,1761414377103,1356.43,0.00016654,2]
[392382700,1761414381466,221.59349955,0.00016656,2]
[392382701,1761414381489,278.40650045,0.00016656,2]
[392382702,1761414383033,500.0,0.00016656,2]
[392382703,1761414384006,1022.67,0.00016654,2]
[392382704,1761414385528,293.92697803,0.00016654,2]
[392382705,1761414385948,500.0,0.00016656,2]
[392382706,1761414386678,500.0,0.00016655,2]
[392382707,1761414387026,500.0,0.00016655,2]
[392382708,1761414387341,500.0,0.00016655,2]
[392382709,1761414389535,514.48577647,0.00016656,2]
[392382710,1761414390262,500.0,0.00016654,2]
[392382711,1761414390703,500.0,0.00016656,2]
[392382712,1761414391239,1596.24,0.00016656,2]
[392382713,1761414392172,524.84140373,0.00016654,2]
[392382714,1761414393143,1295.52,0.00016655,2]
[392382715,1761414393329,500.0,0.00016655,2]
[392382716,1761414394661,473.91934132,0.00016655,2]
[392382717,1761414394683,26.08065868,0.00016655,2]
[392382718,1761414394743,500.0,0.00016656,2]
[392382719,1761414395458,150.0,0.00012516,30]
[392382720,1761414395486,1067.79,0.00016656,2]
[392382721,1761414395856,150.0,0.00013654,30]
[392382722,1761414396244,150.0,0.00014792,30]
[392382723,1761414396636,195.88,0.0001593,30]
[392382724,1761414397036,244.85,0.00017068,30]
[392382725,1761414397443,293.82,0.00018205,30]
[392382726,1761414397843,342.78,0.00019343,30]
[392382727,1761414397915,395.3470981,0.00016573,2]
[392382728,1761414398186,500.0,0.00016656,2]
[392382729,1761414398748,500.0,0.00016656,2]
[392382730,1761414413005,-500.0,0.00016654,2]
[392382731,1761414413034,-509.33058646,0.00016654,2]
[392382732,1761414413063,-973.03,0.00016654,2]
[392382733,1761414414365,1822.38,0.00016654,2]
[392382734,1761414415896,2286.96,0.00016654,2]
[392382735,1761414423783,300.0,0.00016654,2]
[392382736,1761414424079,885.71,0.00016654,2]
[392382737,1761414427904,600.76,0.00016654,2]
[392382738,1761414437027,500.0,0.00016654,2]
[392382739,1761414442599,660.19,0.00016654,2]
[392382740,1761414449422,500.0,0.00016654,2]
[392382741,1761414449658,500.0,0.00016654,2]
[392382742,1761414449987,500.0,0.00016654,2]
[392382743,1761414450249,500.0,0.00016654,2]
[392382744,1761414450537,500.0,0.00016654,2]
[392382745,1761414451897,500.0,0.00016654,2]
[392382746,1761414456176,1390.83,0.00016654,2]
[392382747,1761414458293,1200.0,0.00016654,2]
[392382748,1761414464475,500.0,0.00016654,2]
[392382749,1761414467197,877.11,0.00016654,2]
[392382750,1761414467546,500.0,0.00016654,2]
[392382751,1761414472042,196.0,0.00016,2]
[392382752,1761414472354,196.0,0.0001614,2]
[392382753,1761414472639,196.0,0.0001628,2]
[392382754,1761414473165,150.0,0.00016634,30]
[392382755,1761414473490,196.0,0.0001642,2]
[392382756,1761414473533,196.0,0.0001656,2]
[392382757,1761414473574,150.0,0.00018146,30]
[392382758,1761414473799,150.0,0.00019658,30]
[392382759,1761414478237,391.88,0.00016654,2]
[392382760,1761414478263,303.35,0.00016654,2]
[392382761,1761414484150,300.0,0.00016654,2]
[392382762,1761414491320,960.43,0.00016654,2]
[392382763,1761414497356,595.37,0.00016654,2]
[392382764,1761414502531,1380.72,0.00016654,2]
[392382765,1761414510557,2030.74,0.00016654,2]
[392382766,1761414518230,500.0,0.00016654,2]
[392382767,1761414520014,500.0,0.00016654,2]
[392382768,1761414520492,270.70461675,0.00016578,2]
[392382769,1761414520827,500.0,0.00016654,2]
[392382770,1761414522632,500.0,0.00016654,2]
[392382771,1761414522693,270.70461672,0.00016605,2]
[392382772,1761414524476,270.70461672,0.00016631,2]
[392382773,1761414527671,561.46049693,0.00016654,2]
[392382774,1761414529225,500.0,0.00016654,2]
[392382775,1761414533581,500.0,0.00016654,2]
[392382776,1761414533611,55.82565288,0.00016654,2]
[392382777,1761414533633,444.17434712,0.00016654,2]
[392382778,1761414533665,500.0,0.00016654,2]
[392382779,1761414533694,500.0,0.00016654,2]
[392382780,1761414533722,463.5162803,0.00016654,2]
[392382781,1761414533755,500.0,0.00016654,2]
[392382782,1761414533785,442.95345627,0.00016654,2]
[392382783,1761414533813,500.0,0.00016654,2]
[392382784,1761414533840,404.34385761,0.00016654,2]
[392382785,1761414533868,500.0,0.00016654,2]
[392382786,1761414533905,500.0,0.00016654,2]
[392382787,1761414533934,500.0,0.00016654,2]
[392382788,1761414533976,500.0,0.00016654,2]
[392382789,1761414534009,500.0,0.00016654,2]
[392382790,1761414534039,500.0,0.00016654,2]
[392382791,1761414534075,500.0,0.00016654,2]
[392382792,1761414534103,500.0,0.00016654,2]
[392382793,1761414534134,500.0,0.00016654,2]
[392382794,1761414534167,500.0,0.00016654,2]
[392382795,1761414534207,524.35964496,0.00016654,2]
[392382796,1761414534249,500.0,0.00016654,2]
[392382797,1761414534303,220.66241374,0.00016654,2]
[392382798,1761414534327,279.33758626,0.00016654,2]
[392382799,1761414535766,500.0,0.00016654,2]
[392382800,1761414538098,560.0,0.00016654,2]
[392382801,1761414538216,1299.64,0.00016654,2]
[392382802,1761414538848,843.49,0.00016654,2]
[392382803,1761414543079,1424.63,0.00016654,2]
[392382804,1761414544153,300.0,0.00016654,2]
[392382805,1761414546132,500.0,0.00016654,2]
[392382806,1761414546378,500.0,0.00016654,2]
[392382807,1761414546734,500.0,0.00016654,2]
[392382808,1761414547073,500.0,0.00016654,2]
[392382809,1761414547140,432.97464631,0.00016654,2]
[392382810,1761414547188,500.0,0.00016654,2]
[392382811,1761414547415,500.0,0.00016654,2]
[392382812,1761414547480,153.60453898,0.00016654,2]
[392382813,1761414548749,589.67852336,0.00016654,2]
[392382814,1761414549574,616.65470509,0.00016555,2]
[392382815,1761414549595,151.10764628,0.00016555,2]
[392382816,1761414550388,150.0,0.00017007,30]
[392382817,1761414550852,150.0,0.00018553,30]
[392382818,1761414551273,150.0,0.00020099,30]
[392382819,1761414598519,-196.0,0.00016,2]
[392382820,1761414598986,-196.0,0.000163,2]
[392382821,1761414614416,-200.02416959,0.000166,2]
[392382822,1761414616934,-382.41348663,0.000166,2]
[392382823,1761414628824,150.0,0.00017,30]
[392382824,1761414629244,150.0,0.00018545,30]
[392382825,1761414629679,150.0,0.00020091,30]
[392382826,1761414629884,-35.13177892,0.000166,2]
[392382827,1761414629906,-196.0,0.000166,2]
[392382828,1761414629926,-68.86822108,0.00016653,2]
[392382829,1761414631360,-231.13177892,0.00016653,2]
[392382830,1761414631382,-114.20870538,0.00016653,2]
[392382868,1761414632211,-185.79129462,0.00016653,2]
[392382869,1761414632221,-300.0,0.00016653,2]
[392382871,1761414632231,-300.0,0.00016653,2]
[392382873,1761414632240,-1200.0,0.00016653,2]
[392382875,1761414632250,-748.82,0.00016654,2]
[392382876,1761414632261,-1334.76,0.00016654,2]
[392382878,1761414632270,-1459.99,0.00016654,2]
[392382879,1761414632280,-702.81,0.00016654,2]
[392382880,1761414632290,-500.0,0.00016654,2]
[392382881,1761414632300,-1080.94,0.00016654,2]
[392382882,1761414632311,-1759.71,0.00016654,2]
[392382883,1761414632321,-1255.32,0.00016654,2]
[392382884,1761414632331,-898.77,0.00016654,2]
[392382885,1761414632341,-1554.46,0.00016654,2]
[392382886,1761414632351,-500.0,0.00016654,2]
[392382887,1761414632361,-1734.53,0.00016654,2]
[392382888,1761414632371,-1019.14,0.00016654,2]
[392382889,1761414632381,-1529.73,0.00016654,2]
[392382890,1761414632390,-1365.84,0.00016654,2]
[392382891,1761414632400,-500.0,0.00016654,2]
[392382892,1761414632409,-500.0,0.00016655,2]
[392382893,1761414632418,-500.0,0.00016655,2]
[392382894,1761414632428,-500.0,0.00016655,2]
[392382895,1761414632437,-1637.52,0.00016655,2]
[392382896,1761414632447,-592.89,0.00016655,2]
[392382897,1761414632456,-500.0,0.00016655,2]
[392382898,1761414632466,-500.0,0.00016655,2]
[392382899,1761414632475,-1023.32,0.00016655,2]
[392382900,1761414632485,-1508.7,0.00016655,2]
[392382901,1761414632495,-500.0,0.00016655,2]
[392382902,1761414632505,-603.30805872,0.00016655,2]
[392382903,1761414632515,-500.0,0.00016655,2]
[392382904,1761414632525,-764.47,0.00016655,2]
[392382905,1761414632536,-500.0,0.00016655,2]
[392382906,1761414632546,-1111.26,0.00016655,2]
[392382907,1761414632556,-500.0,0.00016655,2]
[392382908,1761414632565,-500.0,0.00016655,2]
[392382909,1761414632575,-500.0,0.00016655,2]
[392382910,1761414632584,-500.0,0.00016655,2]
[392382911,1761414632593,-970.54,0.00016655,2]
[392382912,1761414632603,-1941.98,0.00016655,2]
[392382913,1761414632612,-500.0,0.00016655,2]
[392382914,1761414632622,-1252.98,0.00016655,2]
[392382915,1761414632631,-500.0,0.00016655,2]
[392382916,1761414632640,-500.0,0.00016655,2]
[392382917,1761414632650,-500.0,0.00016655,2]
[392382918,1761414632659,-500.0,0.00016655,2]
[392382919,1761414632668,-315.99283337,0.00016655,2]
[392382920,1761414632677,-500.0,0.00016655,2]
[392382921,1761414632686,-500.0,0.00016655,2]
[392382922,1761414632695,-500.0,0.00016655,2]
[392382923,1761414632704,-500.0,0.00016655,2]
[392382924,1761414632714,-500.0,0.00016655,2]
[392382925,1761414632723,-759.78,0.00016655,2]
[392382926,1761414632732,-500.0,0.00016655,2]
[392382927,1761414632741,-1560.42,0.00016655,2]
[392382928,1761414632751,-500.0,0.00016655,2]
[392382929,1761414632760,-500.0,0.00016655,2]
[392382930,1761414632770,-2216.8,0.00016655,2]
[392382931,1761414632780,-500.0,0.00016655,2]
[392382932,1761414632789,-770.34,0.00016655,2]
[392382933,1761414632798,-500.0,0.00016655,2]
[392382934,1761414632808,-500.0,0.00016655,2]
[392382935,1761414632817,-500.0,0.00016655,2]
[392382936,1761414632827,-761.27,0.00016655,2]
[392382937,1761414632836,-500.0,0.00016655,2]
[392382938,1761414632845,-500.0,0.00016655,2]
[392382939,1761414632854,-502.50527046,0.00016655,2]
[392382940,1761414632864,-501.80462602,0.00016655,2]
[392382941,1761414632873,-500.0,0.00016655,2]
[392382942,1761414632882,-1102.55,0.00016655,2]
[392382943,1761414632892,-501.77766808,0.00016655,2]
[392382944,1761414632901,-500.0,0.00016655,2]
[392382945,1761414632910,-3414.09,0.00016655,2]
[392382946,1761414632919,-500.0,0.00016655,2]
[392382947,1761414632929,-500.0,0.00016655,2]
[392382948,1761414632938,-1573.68,0.00016655,2]
[392382949,1761414632947,-819.74,0.00016655,2]
[392382950,1761414632957,-500.0,0.00016655,2]
[392382951,1761414632967,-1030.88,0.00016655,2]
[392382952,1761414632976,-500.0,0.00016655,2]
[392382953,1761414632986,-500.0,0.00016655,2]
[392382954,1761414632995,-500.0,0.00016655,2]
[392382955,1761414633004,-500.0,0.00016655,2]
[392382956,1761414633014,-500.0,0.00016655,2]
[392382957,1761414633023,-500.0,0.00016655,2]
[392382958,1761414633033,-500.0,0.00016655,2]
[392382959,1761414633042,-1000.0,0.00016655,2]
[392382960,1761414633051,-500.0,0.00016655,2]
[392382961,1761414633061,-500.0,0.00016655,2]
[392382962,1761414633070,-500.0,0.00016655,2]
[392382963,1761414633080,-500.0,0.00016655,2]
[392382964,1761414633089,-500.0,0.00016655,2]
[392382965,1761414633099,-500.0,0.00016655,2]
[392382966,1761414633108,-500.0,0.00016655,2]
[392382967,1761414633118,-50000.0,0.00016655,2]
[392382968,1761414633128,-500.0,0.00016656,2]
[392382969,1761414633137,-500.0,0.00016656,2]
[392382970,1761414633147,-500.0,0.00016656,2]
[392382971,1761414633158,-500.0,0.00016656,2]
[392382972,1761414633169,-816.68,0.00016656,2]
[392382973,1761414633180,-500.0,0.00016656,2]
[392382974,1761414633191,-150.98989555,0.00016656,2]
[392382975,1761414633201,-500.0,0.00016656,2]
[392382976,1761414633212,-500.0,0.00016656,2]
[392382977,1761414633223,-500.0,0.00016656,2]
[392382978,1761414633234,-500.0,0.00016656,2]
[392382979,1761414633246,-500.0,0.00016656,2]
[392382980,1761414633256,-500.0,0.00016656,2]
[392382981,1761414633267,-1716.75,0.00016656,2]
[392382982,1761414633278,-500.0,0.00016656,2]
[392382983,1761414633288,-500.0,0.00016656,2]
[392382984,1761414633297,-500.0,0.00016656,2]
[392382985,1761414633308,-500.0,0.00016656,2]
[392382986,1761414633318,-500.0,0.00016656,2]
[392382987,1761414633327,-500.0,0.00016656,2]
[392382988,1761414633337,-500.0,0.00016656,2]
[392382989,1761414633347,-500.0,0.00016656,2]
[392382990,1761414633356,-500.0,0.00016656,2]
[392382991,1761414633366,-500.0,0.00016656,2]
[392382992,1761414633376,-501.15017766,0.00016656,2]
[392382993,1761414633386,-500.0,0.00016656,2]
[392382994,1761414633396,-500.0,0.00016656,2]
[392382995,1761414633405,-500.0,0.00016656,2]
[392382996,1761414633415,-500.0,0.00016656,2]
[392382997,1761414633425,-500.0,0.00016656,2]
[392382998,1761414633435,-500.0,0.00016656,2]
[392382999,1761414633444,-500.0,0.00016656,2]
[392383000,1761414633455,-500.0,0.00016656,2]
[392383001,1761414633464,-500.0,0.00016656,2]
[392383002,1761414633474,-500.0,0.00016656,2]
[392383003,1761414633484,-503.04841535,0.00016656,2]
[392383004,1761414633494,-500.0,0.00016656,2]
[392383005,1761414633504,-500.0,0.00016656,2]
[392383006,1761414633514,-500.0,0.00016656,2]
[392383007,1761414633524,-563.06,0.00016656,2]
[392383008,1761414633535,-500.0,0.00016656,2]
[392383009,1761414633546,-500.0,0.00016656,2]
[392383010,1761414633556,-500.0,0.00016656,2]
[392383011,1761414633566,-500.0,0.00016656,2]
[392383012,1761414633576,-1537.73,0.00016656,2]
[392383013,1761414633585,-160.78326218,0.00016656,2]
[392383014,1761414633594,-500.0,0.00016656,2]
[392383015,1761414633604,-500.0,0.00016656,2]
[392383016,1761414633616,-500.0,0.00016656,2]
[392383017,1761414633625,-500.0,0.00016656,2]
[392383018,1761414633636,-500.0,0.00016656,2]
[392383019,1761414633646,-500.0,0.00016656,2]
[392383020,1761414633656,-469.24201841,0.00016656,2]
[392383021,1761414633666,-500.0,0.00016656,2]
[392383022,1761414633676,-500.0,0.00016656,2]
[392383023,1761414633686,-500.0,0.00016656,2]
[392383024,1761414633696,-500.0,0.00016656,2]
[392383025,1761414633705,-500.0,0.00016656,2]
[392383026,1761414633715,-500.0,0.00016656,2]
[392383027,1761414633725,-500.0,0.00016656,2]
[392383028,1761414633735,-508.88502926,0.00016656,2]
[392383029,1761414633744,-500.0,0.00016656,2]
[392383030,1761414633754,-500.0,0.00016656,2]
[392383031,1761414633764,-500.0,0.00016656,2]
[392383032,1761414633774,-500.0,0.00016656,2]
[392383033,1761414633783,-500.0,0.00016656,2]
[392383034,1761414633793,-487.35473296,0.00016656,2]
[392383035,1761414633803,-500.0,0.00016656,2]
[392383036,1761414633812,-500.0,0.00016656,2]
[392383037,1761414633822,-500.0,0.00016656,2]
[392383038,1761414633832,-500.0,0.00016656,2]
[392383039,1761414633842,-500.0,0.00016656,2]
[392383040,1761414633852,-500.0,0.00016656,2]
[392383041,1761414633862,-502.09157444,0.00016656,2]
[392383042,1761414633871,-500.0,0.00016656,2]
[392383043,1761414633881,-601.02270786,0.00016656,2]
[392383044,1761414633891,-506.43411623,0.00016656,2]
[392383045,1761414633900,-500.0,0.00016656,2]
[392383046,1761414633910,-500.0,0.00016656,2]
[392383047,1761414633920,-500.0,0.00016656,2]
[392383048,1761414633930,-500.0,0.00016656,2]
[392383049,1761414633940,-506.79711542,0.00016656,2]
[392383050,1761414633950,-500.0,0.00016656,2]
[392383051,1761414633959,-500.0,0.00016656,2]
[392383052,1761414633970,-500.0,0.00016656,2]
[392383053,1761414633979,-500.0,0.00016656,2]
[392383054,1761414633988,-500.0,0.00016656,2]
[392383055,1761414633998,-498.54128629,0.00016656,2]
[392383056,1761414634008,-500.0,0.00016656,2]
[392383057,1761414634018,-500.0,0.00016656,2]
[392383058,1761414634028,-500.0,0.00016656,2]
[392383059,1761414634037,-500.0,0.00016656,2]
[392383060,1761414634047,-500.0,0.00016656,2]
[392383061,1761414634057,-500.0,0.00016656,2]
[392383062,1761414634067,-500.0,0.00016656,2]
[392383063,1761414634077,-500.0,0.00016656,2]
[392383064,1761414634087,-500.0,0.00016656,2]